bitfinex-derivatives/quotes_ETHF0:USTF0_20260223
["timestamp","ask_amount","ask_price","bid_price","bid_amount"]
[1771860675906,2.05456213,1903.9,1903.2,1.78018851]
[1771860676405,2.05456213,1903.9,1903.2,1.78492552]
[1771860676596,2.05456213,1903.9,1903.2,1.78018851]
[1771860676800,2.05456213,1903.9,1903.2,1.78492552]
[1771860677207,1.79188213,1903.9,1903.2,1.78018851]
[1771860677408,1.79188213,1903.9,1903.3,1.78492552]
[1771860677600,1.79188213,1903.9,1903.3,1.78018851]
[1771860678003,1.79188213,1903.9,1903.3,1.78492552]
[1771860678800,1.81448382,1904.1,1903.5,1.67522738]
[1771860679304,1.81448382,1904.1,1903.6,0.00473701]
[1771860679810,1.81448382,1904.1,1903.4,1.76090379]
[1771860680003,1.81448382,1904.1,1903.4,0.00473701]
[1771860681413,1.81448382,1904.1,1903.3,1.76090379]
[1771860681914,1.81448382,1904.1,1903.4,0.00473701]
[1771860682611,2.07713382,1904.1,1903.1,1.76090379]
[1771860683210,2.07713382,1904.1,1903.4,1.76090379]
[1771860683811,2.07713382,1904.1,1903.4,1.7656408]
[1771860684018,2.07713382,1904.1,1903.4,1.76090379]
[1771860684317,2.07713382,1904.1,1903.5,1.76090379]
[1771860684718,2.07713382,1904.1,1903.6,1.7656408]
[1771860684915,1.68308775,1904.3,1903.6,1.76090379]
[1771860685313,1.68308775,1904.3,1903.9,1.7656408]
[1771860685514,1.68308775,1904.3,1903.9,1.76090379]
[1771860685714,1.67906145,1904.5,1904.1,1.7656408]
[1771860685918,1.67906145,1904.5,1904.1,1.76090379]
[1771860686118,1.67906145,1904.5,1903.4,1.76090379]
[1771860686318,1.67906145,1904.5,1903.8,1.76090379]
[1771860686719,1.68388142,1904.5,1903.8,0.01054897]
[1771860686914,0.2626,1904.4,1903.8,0.01054897]
[1771860687127,1.68388142,1904.5,1903.3,0.26274]
[1771860687128,1.67906145,1904.1,1903.3,1.76090379]
[1771860687320,1.67906145,1904.1,1903.4,1.76090379]
[1771860687517,1.67906145,1903.9,1903.4,1.76090379]
[1771860687714,1.67906145,1903.9,1902.9,1.76090379]
[1771860687916,1.67906145,1903.9,1903.2,1.7656408]
[1771860688116,15.35460575,1904.4,1903.2,0.00598695]
[1771860688117,1.67906145,1903.7,1903.2,0.00598695]
[1771860688317,1.67906145,1903.7,1903.2,1.76689074]
[1771860688516,1.67906145,1903.7,1903.4,0.00473701]
[1771860688724,1.67906145,1903.7,1903.2,0.00598695]
[1771860688919,1.67906145,1903.7,1903.4,0.00473701]
[1771860689222,1.67906145,1904.1,1903.4,1.76090379]
[1771860689418,1.67906145,1904.3,1903.8,1.76090379]
[1771860689924,1.67906145,1904.3,1903.9,0.00473701]
[1771860690123,1.67906145,1904.3,1903.6,1.76090379]
[1771860690427,1.67906145,1904.3,1903.6,1.7656408]
[1771860690721,1.67906145,1904.3,1903.6,1.76090379]
[1771860691024,1.67906145,1904.3,1903.9,0.00473701]
[1771860691324,1.67906145,1904.3,1903.4,1.76090379]
[1771860691724,1.94168145,1904.3,1903.4,1.76090379]
[1771860691919,1.94168145,1904.3,1903.5,0.00473701]
[1771860692118,1.94168145,1904.3,1903.2,1.76689074]
[1771860692520,1.94168145,1904.3,1903.3,1.7656408]
[1771860692715,1.94168145,1904.3,1903.3,1.76090379]
[1771860692925,1.94168145,1904.3,1903.5,1.76090379]
[1771860693527,1.94168145,1904.3,1903.7,0.00473701]
[1771860693728,1.94168145,1904.3,1903.5,1.76090379]
[1771860693927,1.94168145,1904.3,1903.7,0.00473701]
[1771860694125,1.94168145,1904.3,1903.5,1.76090379]
[1771860694528,1.94168145,1904.3,1903.7,0.00473701]
[1771860694925,1.94168145,1904.3,1903.5,1.76090379]
[1771860695525,1.94168145,1904.3,1903.3,1.76090379]
[1771860696228,1.94168145,1904.3,1903.4,0.00473701]
[1771860696423,1.94168145,1904.3,1903.3,1.76090379]
[1771860696830,1.67906145,1903.9,1903.3,1.76090379]
[1771860697225,1.67906145,1903.9,1903.2,1.76689074]
[1771860697730,0.26266,1904.0,1903.6,1.7656408]
[1771860698036,1.94172145,1904.0,1903.2,1.76689074]
[1771860702829,1.67906145,1903.7,1903.2,1.76689074]
[1771860705031,1.94174145,1903.8,1903.2,1.76689074]
[1771860705430,1.94174145,1903.8,1903.2,0.00598695]
[1771860707439,1.67906145,1903.4,1902.6,1.76090379]
[1771860707828,1.68949783,1903.0,1902.2,1.82252856]
[1771860708437,1.69598332,1903.0,1902.2,1.8269057]
[1771860708834,0.00648549,1903.0,1902.2,1.8269057]
[1771860709339,1.69598332,1903.0,1902.2,1.8269057]
[1771860710640,1.68949783,1902.8,1902.2,0.00437714]
[1771860711037,0.2628,1902.9,1902.2,1.8269057]
[1771860711232,0.00648549,1903.0,1902.2,1.8269057]
[1771860711836,1.68949783,1903.3,1902.4,1.82252856]
[1771860713045,1.69373703,1903.3,1902.4,1.82252856]
[1771860715949,0.0042392,1903.3,1902.4,1.82252856]
[1771860716153,0.0042392,1903.3,1902.6,1.82252856]
[1771860717152,1.68949783,1903.6,1902.6,1.82252856]
[1771860718253,1.69536061,1903.6,1902.6,1.82252856]
[1771860721656,1.68949783,1903.4,1902.6,1.82252856]
[1771860721951,1.68949783,1903.2,1902.3,1.82252856]
[1771860723152,1.68949783,1903.0,1902.2,0.00437714]
[1771860723356,1.68949783,1903.0,1902.2,1.8269057]
[1771860724250,1.68949783,1903.2,1902.2,1.8269057]
[1771860724453,4.36582389,1903.4,1902.2,1.8269057]
[1771860724454,0.26272,1903.5,1902.4,1.82252856]
[1771860724654,1.95221783,1903.5,1902.4,1.82252856]
[1771860724855,1.95221783,1903.5,1902.6,1.82252856]
[1771860725456,1.68949783,1903.5,1902.6,1.82252856]
[1771860726161,0.00586278,1903.6,1902.6,1.82252856]
[1771860726355,0.00586278,1903.6,1902.8,1.82252856]
[1771860727260,1.69536061,1903.6,1902.8,1.82252856]
[1771860731365,1.95808061,1903.6,1902.6,1.82252856]
[1771860733356,1.69536061,1903.6,1902.6,1.82252856]
[1771860733561,0.00586278,1903.6,1902.8,1.82252856]
[1771860733760,1.69536061,1903.6,1902.8,1.82252856]
[1771860738975,0.00586278,1903.6,1902.8,1.82252856]
[1771860741468,1.74331882,1903.6,1902.8,1.82252856]
[1771860744273,1.73745604,1903.4,1902.5,1.82253939]
[1771860744765,1.73745604,1903.2,1902.3,1.82253939]
[1771860745361,4.36582389,1903.5,1902.3,1.82253939]
[1771860745566,1.73745604,1903.3,1902.3,1.82253939]
[1771860745766,1.73745604,1903.1,1902.3,1.82253939]
[1771860750771,1.73745604,1903.2,1902.3,1.82253939]
[1771860752173,1.73745604,1903.4,1902.3,1.82253939]
[1771860752475,0.00586278,1903.6,1902.6,1.82253939]
[1771860752868,0.00586278,1903.6,1902.8,1.82253939]
[1771860753268,0.00586278,1903.6,1902.8,5.46926531]
[1771860753472,2.00011604,1904.0,1903.0,1.82253939]
[1771860754479,2.00396803,1904.0,1903.0,1.82253939]
[1771860754676,1.74130803,1904.0,1903.0,1.82253939]
[1771860756787,1.73745604,1903.8,1903.0,1.82253939]
[1771860756984,1.73745604,1903.8,1902.6,1.82253939]
[1771860757392,1.73745604,1903.6,1902.6,1.82253939]
[1771860759485,1.73745604,1903.9,1902.8,1.82253939]
[1771860760586,1.73745604,1903.9,1903.0,1.82253939]
[1771860762092,1.73745604,1903.7,1903.0,1.82253939]
[1771860762593,1.73745604,1903.9,1903.0,1.82253939]
[1771860764788,0.00385199,1904.0,1903.2,1.82253939]
[1771860765495,0.00385199,1904.0,1903.4,1.82253939]
[1771860767395,4.36582389,1904.7,1903.4,1.82253939]
[1771860767396,1.73745604,1904.4,1903.4,1.82253939]
[1771860768285,1.74394678,1904.4,1903.4,1.82253939]
[1771860768892,0.00649074,1904.4,1903.6,1.73007627]
[1771860769195,0.00649074,1904.4,1903.6,1.73545295]
[1771860769395,1.80256276,1904.4,1903.6,1.73545295]
[1771860771197,0.00649074,1904.4,1903.6,1.73545295]
[1771860771496,1.79607202,1905.0,1903.8,1.81414043]
[1771860771997,1.79607202,1905.0,1904.0,1.81414043]
[1771860772198,1.79607202,1904.8,1904.0,1.81414043]
[1771860772399,1.80106056,1904.8,1904.0,1.81414043]
[1771860773093,1.80106056,1904.8,1903.8,1.81414043]
[1771860773295,1.79607202,1904.6,1903.8,1.81414043]
[1771860774790,1.80106056,1904.8,1903.8,1.81414043]
[1771860778704,0.00498854,1904.8,1903.8,1.81414043]
[1771860778910,0.00498854,1904.8,1904.0,1.81414043]
[1771860779103,11.38548676,1905.3,1904.0,1.81414043]
[1771860779104,1.79607202,1905.2,1904.1,1.81414043]
[1771860779704,1.79607202,1905.2,1904.2,1.81414043]
[1771860780101,0.00447951,1905.2,1904.4,1.81414043]
[1771860780307,0.00447951,1905.2,1904.4,2.07674043]
[1771860780611,1.86005602,1905.5,1904.6,1.81414043]
[1771860781611,1.86500006,1905.5,1904.6,1.81414043]
[1771860782216,1.86500006,1905.5,1904.8,1.81414043]
[1771860782217,0.06892804,1905.5,1904.8,1.81414043]
[1771860782410,1.79607202,1906.1,1905.0,1.81414043]
[1771860782711,8.18918272,1906.8,1905.6,1.81414043]
[1771860782712,1.79607202,1906.7,1905.6,1.81414043]
[1771860783009,1.79607202,1906.7,1905.8,1.81414043]
[1771860783409,1.8013767,1906.7,1905.8,1.81977955]
[1771860785216,0.00530468,1906.7,1906.2,1.81414043]
[1771860785612,1.79607202,1907.3,1906.2,1.81414043]
[1771860786312,1.79607202,1907.7,1906.5,1.81414043]
[1771860786618,1.79607202,1907.7,1906.8,1.81414043]
[1771860786619,1.80161354,1907.7,1906.8,1.81414043]
[1771860787517,1.80161354,1907.7,1906.3,0.26234]
[1771860787518,1.80161354,1907.7,1907.0,1.81414043]
[1771860789217,1.80161354,1907.7,1906.5,1.81414043]
[1771860789720,1.79607202,1907.5,1906.5,1.81414043]
[1771860791225,0.26218,1907.4,1906.3,1.81414043]
[1771860791514,1.79607202,1907.1,1906.3,1.81414043]
[1771860792418,1.79607202,1907.6,1906.4,8.5883129]
[1771860792619,1.79607202,1907.6,1906.5,1.81414043]
[1771860793818,1.79607202,1907.6,1906.7,1.81414043]
[1771860794710,0.00554152,1907.7,1906.7,1.81414043]
[1771860794910,1.80161354,1907.7,1906.7,1.81414043]
[1771860796720,0.00554152,1907.7,1906.9,2.07639043]
[1771860797114,1.86005602,1908.4,1907.4,1.81414043]
[1771860797821,0.09122138,1909.2,1907.6,6.44918]
[1771860798028,1.78713714,1909.2,1908.1,1.71468702]
[1771860798219,1.78713714,1910.1,1908.7,1.71468702]
[1771860798520,1.78713714,1910.1,1908.9,1.71468702]
[1771860798917,1.78713714,1909.9,1908.9,1.71468702]
[1771860799116,1.78713714,1909.7,1908.2,1.71468702]
[1771860799314,1.78713714,1909.6,1908.2,1.71468702]
[1771860799621,1.78713714,1909.4,1908.4,1.71468702]
[1771860800523,1.69794879,1909.3,1908.2,1.78087997]
[1771860801415,1.69794879,1909.3,1908.3,1.78087997]
[1771860801622,1.69794879,1909.5,1908.4,1.78087997]
[1771860802618,1.69794879,1909.4,1908.4,1.78087997]
[1771860803018,1.95989879,1909.1,1908.0,1.78087997]
[1771860804029,1.69794879,1909.4,1908.1,1.78551392]
[1771860804233,6.4408,1910.1,1908.5,1.78087997]
[1771860804234,1.69794879,1909.6,1908.5,1.78087997]
[1771860804626,1.69794879,1909.6,1908.7,1.78087997]
[1771860809527,1.69794879,1909.8,1908.7,1.78087997]
[1771860809728,1.69794879,1909.8,1908.9,1.78087997]
[1771860809925,1.70352529,1909.7,1908.9,1.78087997]
[1771860810332,0.0055765,1909.7,1908.9,1.78087997]
[1771860810526,1.70352529,1909.7,1908.5,1.78087997]
[1771860811036,1.70352529,1909.7,1908.6,1.78087997]
[1771860811430,1.70352529,1909.7,1908.8,1.78087997]
[1771860813937,0.0055765,1909.7,1908.8,1.78087997]
[1771860814338,0.0055765,1909.7,1909.0,1.78087997]
[1771860814733,0.0055765,1909.7,1909.2,1.78087997]
[1771860815440,1.69794879,1910.1,1909.2,1.78087997]
[1771860816334,1.69794879,1909.9,1909.0,1.78087997]
[1771860817535,0.00570413,1910.1,1908.6,1.78087997]
[1771860817536,1.69794879,1909.7,1908.6,1.78087997]
[1771860817741,1.69794879,1909.5,1908.2,1.78087997]
[1771860817942,0.26191,1909.4,1908.2,1.78087997]
[1771860818142,1.69794879,1909.3,1908.2,1.78087997]
[1771860818841,1.69794879,1909.1,1908.2,1.78087997]
[1771860821441,1.69794879,1908.9,1908.1,1.78551392]
[1771860821641,1.69794879,1909.1,1908.1,1.78551392]
[1771860822845,1.95989879,1909.1,1908.1,1.78551392]
[1771860824844,1.95989879,1909.1,1908.1,0.00463395]
[1771860825251,1.69794879,1908.7,1908.1,0.00463395]
[1771860825444,1.69794879,1908.5,1908.1,0.00463395]
[1771860825749,0.00471553,1908.7,1907.2,0.26221]
[1771860825750,1.69794879,1908.3,1907.2,1.78087997]
[1771860826347,1.69794879,1908.1,1907.2,1.78087997]
[1771860826648,1.69794879,1907.9,1907.2,0.00501919]
[1771860827047,1.69794879,1907.7,1906.8,1.78087997]
[1771860828047,1.69794879,1907.7,1906.8,1.78580717]
[1771860828951,1.7517306,1907.5,1906.8,0.0049272]
[1771860829647,1.7517306,1907.5,1906.8,1.73915425]
[1771860830049,1.7517306,1907.3,1906.8,0.0049272]
[1771860830245,1.7517306,1907.3,1906.5,1.73422705]
[1771860830447,1.7517306,1907.3,1906.0,1.73422705]
[1771860830753,1.7517306,1907.3,1906.1,1.73422705]
[1771860831156,1.75577648,1907.3,1906.1,1.73885511]
[1771860831555,1.7517306,1907.1,1906.1,1.73885511]
[1771860831948,1.7517306,1906.9,1906.1,1.73885511]
[1771860833553,1.7517306,1906.7,1906.1,0.00462806]
[1771860834360,1.7517306,1906.7,1905.6,1.73422705]
[1771860834555,1.7517306,1906.5,1905.6,1.73422705]
[1771860835458,1.7517306,1906.5,1905.6,1.73981703]
[1771860839260,2.0140206,1906.7,1905.6,1.73981703]
[1771860840751,1.7517306,1906.7,1905.6,1.73981703]
[1771860840957,1.7517306,1907.1,1905.6,1.73981703]
[1771860841563,1.7517306,1907.1,1905.8,1.73422705]
[1771860842364,1.7517306,1906.9,1905.8,1.73422705]
[1771860846560,1.7517306,1906.9,1906.0,1.73422705]
[1771860850571,1.7517306,1906.9,1906.2,1.73422705]
[1771860850972,1.7517306,1906.9,1905.8,1.73422705]
[1771860851673,2.0139906,1906.9,1905.8,1.73422705]
[1771860852268,1.7517306,1906.6,1905.6,1.73981703]
[1771860854878,1.7517306,1906.9,1905.8,1.73422705]
[1771860856269,1.7517306,1906.8,1905.8,1.73422705]
[1771860857675,1.7517306,1906.6,1905.7,1.59751405]
[1771860865179,4.34531462,1906.4,1905.6,0.00558998]
[1771860865386,4.34531462,1906.4,1905.3,1.5779935]
[1771860865387,1.63039456,1906.0,1905.3,1.5779935]
[1771860865582,1.63039456,1905.8,1905.0,1.5779935]
[1771860865783,1.63039456,1905.7,1904.8,1.5779935]
[1771860866183,1.63039456,1905.5,1904.8,1.5779935]
[1771860866481,1.63608218,1905.5,1904.8,1.58210701]
[1771860867381,1.63039456,1905.9,1905.0,1.5779935]
[1771860867586,1.63039456,1906.1,1905.0,1.5779935]
[1771860868183,1.63039456,1906.1,1905.2,1.5779935]
[1771860868384,1.63638618,1906.1,1905.2,1.5779935]
[1771860868782,0.00599162,1906.1,1905.2,1.8404735]
[1771860868986,1.89267456,1906.7,1905.4,1.8404535]
[1771860869684,1.89267456,1906.7,1905.6,1.5779935]
[1771860870079,1.89942501,1906.7,1905.6,1.5779935]
[1771860873877,1.63039456,1906.4,1905.6,1.5779935]
[1771860874076,1.63039456,1906.4,1905.1,1.5779935]
[1771860874282,1.63039456,1906.2,1905.1,1.5779935]
[1771860875784,1.63039456,1906.0,1905.1,1.5779935]
[1771860876187,1.63039456,1906.0,1904.9,1.5779935]
[1771860878587,1.63039456,1906.0,1904.9,1.8405135]
[1771860878889,1.63039456,1906.2,1905.1,1.8404935]
[1771860879989,5.97570918,1906.4,1905.1,1.8404935]
[1771860880190,1.63039456,1906.4,1905.1,1.8404935]
[1771860880585,1.63039456,1906.4,1905.3,1.5779935]
[1771860884796,1.63039456,1906.2,1905.3,1.5779935]
[1771860887199,1.63039456,1906.0,1904.9,1.5779935]
[1771860887404,1.63039456,1905.8,1904.9,1.5779935]
[1771860889199,1.61842696,1906.0,1904.9,1.5779935]
[1771860892608,1.61842696,1906.0,1905.1,1.61907934]
[1771860893706,1.88081696,1906.0,1905.1,1.61907934]
[1771860893906,1.61842696,1905.9,1905.1,1.61907934]
[1771860900209,1.61842696,1905.8,1905.1,1.61907934]
[1771860901906,1.61842696,1905.8,1904.8,0.00411351]
[1771860902108,1.61842696,1905.4,1904.8,0.00411351]
[1771860902704,1.61842696,1905.4,1904.8,1.62319285]
[1771860903111,1.61842696,1905.7,1904.8,1.62319285]
[1771860903612,4.60771462,1905.9,1904.8,1.62319285]
[1771860903613,6.22614158,1905.9,1904.8,1.62319285]
[1771860903813,1.61842696,1905.8,1904.8,1.62319285]
[1771860904412,1.61842696,1905.8,1904.8,1.88572285]
[1771860904615,6.55420687,1906.1,1905.0,1.61907934]
[1771860904616,1.61842696,1906.0,1905.0,1.61907934]
[1771860905515,1.61842696,1906.2,1905.0,1.61907934]
[1771860905818,1.61842696,1906.5,1905.4,1.61907934]
[1771860906410,1.61842696,1906.5,1905.6,1.61907934]
[1771860906612,1.62517741,1906.7,1905.6,1.61907934]
[1771860907312,1.61842696,1906.5,1905.6,1.61907934]
[1771860909612,3.64185608,1906.7,1905.6,1.61907934]
[1771860909613,1.62517741,1906.7,1905.6,1.61907934]
[1771860916313,0.00675045,1906.7,1905.8,1.61907934]
[1771860916512,1.61842696,1907.2,1906.0,1.61907934]
[1771860916920,1.61842696,1907.2,1906.2,1.61907934]
[1771860917623,1.62510969,1907.2,1906.2,1.62557361]
[1771860921230,1.88731969,1907.2,1906.2,1.62557361]
[1771860921623,1.88731969,1907.2,1906.2,0.00649427]
[1771860923031,1.80630251,1907.0,1906.2,0.00649427]
[1771860923827,8.88910563,1907.1,1905.7,1.58716371]
[1771860923828,1.54406251,1906.9,1905.7,1.58716371]
[1771860924829,1.54406251,1906.9,1905.7,1.59309274]
[1771860926832,1.54406251,1906.9,1905.9,1.58716371]
[1771860930128,1.54406251,1906.7,1905.7,1.59309274]
[1771860930334,1.54406251,1906.5,1905.7,1.59309274]
[1771860932627,1.54406251,1906.3,1905.7,0.00592903]
[1771860933233,8.88910563,1906.8,1905.0,7.96274601]
[1771860933234,1.54406251,1906.1,1905.0,1.58716371]
[1771860933431,6.45296,1906.5,1905.0,1.58716371]
[1771860933432,1.54406251,1905.9,1905.0,1.58716371]
[1771860934232,1.54406251,1905.9,1905.0,1.5931572]
[1771860937239,4.34531462,1906.3,1905.0,1.5931572]
[1771860937240,1.54406251,1905.7,1905.0,1.5931572]
[1771860937439,1.55087511,1905.7,1905.0,1.5931572]
[1771860940536,0.0068126,1905.7,1905.0,1.5931572]
[1771860942343,1.54406251,1906.1,1905.0,1.5931572]
[1771860943342,1.54833838,1906.1,1905.0,1.5931572]
[1771860944338,0.26238,1906.0,1905.0,1.5931572]
[1771860944643,1.54406251,1905.9,1905.0,1.5931572]
[1771860945144,1.80644251,1906.0,1905.0,1.5931572]
[1771860948741,1.54406251,1906.0,1905.0,1.5931572]
[1771860949142,0.00427587,1906.1,1905.2,1.46716664]
[1771860953047,0.00427587,1906.1,1905.4,1.46716664]
[1771860955946,1.45903595,1906.1,1905.4,1.46716664]
[1771860957745,0.26241,1905.8,1905.2,1.46716664]
[1771860958047,0.26241,1905.8,1905.0,1.47316013]
[1771860958048,1.45476008,1905.7,1905.0,1.47316013]
[1771860959145,1.45476008,1905.5,1905.0,0.00599349]
[1771860960046,1.45476008,1905.3,1904.3,1.46716664]
[1771860961151,1.45476008,1905.3,1904.3,1.47262452]
[1771860966460,1.45476008,1905.1,1904.3,1.47262452]
[1771860967860,0.26251,1905.0,1904.1,1.46716664]
[1771860968061,1.45476008,1904.7,1903.9,1.46716664]
[1771860968467,1.45476008,1904.9,1903.9,1.46716664]
[1771860969168,1.46010985,1904.9,1903.9,1.47161383]
[1771860969666,1.72263985,1904.9,1903.9,1.47161383]
[1771860969973,1.46010985,1904.9,1903.9,1.47161383]
[1771860972464,1.45476008,1904.7,1903.9,1.47161383]
[1771860973466,1.45476008,1904.5,1903.9,1.47161383]
[1771860973972,1.45476008,1904.5,1903.7,1.46716664]
[1771860974264,1.45476008,1904.3,1903.7,1.46716664]
[1771860974565,1.45476008,1904.3,1903.1,6.75428589]
[1771860974566,1.45476008,1904.1,1903.3,1.46716664]
[1771860974966,1.45476008,1904.3,1903.3,1.47131902]
[1771860975563,1.45476008,1904.5,1903.3,1.47131902]
[1771860975771,1.45476008,1904.5,1903.5,1.46716664]
[1771860976269,0.00534977,1904.9,1903.3,0.00415238]
[1771860976270,1.46010985,1904.9,1903.7,1.46716664]
[1771860976462,1.45476008,1904.7,1903.7,1.46716664]
[1771860977971,1.4317839,1904.7,1903.7,1.46716664]
[1771860980969,1.45876019,1904.5,1903.7,1.46716664]
[1771860981164,0.26257,1904.6,1903.7,1.46716664]
[1771860981165,1.45876019,1904.8,1903.7,1.46716664]
[1771860981572,1.46410996,1904.9,1903.7,1.46716664]
[1771860982277,0.00534977,1904.9,1903.9,1.43358728]
[1771860983875,0.00534977,1904.9,1904.1,1.43358728]
[1771860984974,1.72121019,1905.5,1904.3,1.43358728]
[1771860986073,1.72657275,1905.5,1904.3,1.43358728]
[1771860988978,1.46412275,1905.5,1904.3,1.43358728]
[1771860989178,1.46412275,1905.5,1904.5,1.43358728]
[1771860991184,1.46412275,1905.5,1904.1,4.63332661]
[1771860991185,0.00536256,1905.5,1904.7,1.43358728]
[1771860991382,0.00148903,1905.5,1904.7,1.44019435]
[1771860991579,1.45876019,1905.8,1904.7,1.44019435]
[1771860991776,1.45876019,1906.0,1904.9,1.43358728]
[1771860992183,1.45876019,1906.5,1905.1,1.43358728]
[1771860992678,1.46514099,1906.5,1905.1,1.43358728]
[1771860999684,1.45876019,1906.3,1905.1,1.43358728]
[1771861005690,1.4548568,1906.5,1905.3,1.43358728]
[1771861005891,1.4548568,1906.5,1905.4,3.63551372]
[1771861006090,1.4548568,1906.5,1905.5,1.43358728]
[1771861009398,0.0063808,1906.5,1905.5,1.43358728]
[1771861009899,1.29683285,1906.5,1905.5,1.43358728]
[1771861012400,1.55914285,1906.5,1905.5,1.43358728]
[1771861013907,1.29683285,1906.5,1905.5,1.43358728]
[1771861014204,0.0063808,1906.5,1905.7,1.25284371]
[1771861014597,1.29045205,1907.1,1906.1,1.25284371]
[1771861015698,0.00507108,1907.1,1906.3,4.88835743]
[1771861016004,0.00507108,1907.1,1906.4,1.25284371]
[1771861017001,1.29045205,1907.6,1906.4,1.25284371]
[1771861017300,1.29045205,1907.6,1906.7,1.25284371]
[1771861018003,1.29574411,1907.6,1906.7,1.25284371]
[1771861020003,0.00529206,1907.6,1906.7,1.25284371]
[1771861021001,1.29574411,1907.6,1906.7,1.25284371]
[1771861022004,0.00529206,1907.6,1906.7,1.25284371]
[1771861022200,1.29574411,1907.6,1906.7,1.25284371]
[1771861023599,0.00529206,1907.6,1906.7,1.25284371]
[1771861023805,1.29045205,1908.2,1907.0,1.25284371]
[1771861024006,1.29045205,1908.2,1907.2,1.25284371]
[1771861024504,0.063984,1908.4,1907.6,1.25284371]
[1771861024801,0.00394354,1908.4,1907.8,1.25284371]
[1771861025111,1.29439559,1908.4,1907.8,1.25284371]
[1771861025804,1.29045205,1908.3,1907.8,1.25284371]
[1771861026004,0.00394354,1908.4,1907.8,1.25284371]
[1771861027515,1.29045205,1909.4,1908.0,1.25284371]
[1771861027913,1.29045205,1909.4,1908.2,1.25284371]
[1771861028410,1.29455009,1909.4,1908.2,1.25284371]
[1771861029612,1.29045205,1909.2,1908.2,1.25284371]
[1771861030109,1.29045205,1908.8,1907.8,1.25284371]
[1771861030507,1.29045205,1908.6,1907.8,1.25284371]
[1771861031112,1.29045205,1908.6,1907.6,1.25784107]
[1771861031316,1.29045205,1908.4,1907.6,0.00499736]
[1771861031616,1.29045205,1908.2,1907.2,1.25284371]
[1771861032615,1.29045205,1908.2,1907.2,1.25771163]
[1771861033419,1.29045205,1907.8,1906.7,1.25284371]
[1771861033612,1.29045205,1907.6,1906.7,1.25284371]
[1771861034306,1.29045205,1907.4,1906.2,1.25284371]
[1771861034512,1.29469013,1907.4,1906.2,1.25706848]
[1771861034909,1.29469013,1907.4,1906.4,1.25284371]
[1771861035911,1.29045205,1907.3,1906.2,1.25706848]
[1771861036308,1.29045205,1907.1,1906.2,1.25706848]
[1771861036910,1.29045205,1907.1,1906.2,0.00422477]
[1771861037112,1.29045205,1907.1,1906.2,1.25706848]
[1771861038511,1.17755073,1906.9,1906.2,1.25706848]
[1771861039017,1.17755073,1907.3,1906.2,1.25706848]
[1771861041921,1.17755073,1907.3,1906.2,42.05706848]
[1771861042124,1.17755073,1907.3,1906.3,1.21817459]
[1771861042621,1.17875184,1907.4,1906.3,1.21817459]
[1771861045423,0.00423808,1907.4,1906.3,5.11601831]
[1771861045612,0.00423808,1907.4,1906.3,3.89784372]
[1771861045819,0.00423808,1907.4,1906.6,1.21817459]
[1771861046318,1.17875184,1907.4,1906.6,1.21817459]
[1771861046513,0.00423808,1907.4,1906.6,1.21817459]
[1771861046719,0.00423808,1907.4,1906.8,1.21817459]
[1771861046921,14.54596289,1908.4,1906.7,7.07452679]
[1771861046922,1.17451376,1908.1,1906.9,1.48042459]
[1771861047118,1.17451376,1908.4,1907.2,1.21817459]
[1771861047722,1.17451376,1908.9,1907.5,1.21817459]
[1771861048020,0.00671747,1908.4,1907.5,1.21817459]
[1771861048421,1.18123123,1908.4,1907.5,1.21817459]
[1771861048923,0.00671747,1908.4,1907.5,1.21817459]
[1771861049123,1.18123123,1908.4,1907.5,1.21817459]
[1771861049322,1.18123123,1908.4,1907.1,44.43551372]
[1771861049323,1.17451376,1908.2,1907.1,40.8]
[1771861049518,1.17451376,1908.2,1907.1,1.21817459]
[1771861050125,1.17451376,1908.0,1907.1,1.21817459]
[1771861052719,1.17451376,1908.2,1907.1,1.21817459]
[1771861054422,1.43659376,1908.2,1907.1,1.21817459]
[1771861055929,1.43659376,1908.2,1907.3,1.21817459]
[1771861056430,1.18123123,1908.4,1907.3,1.21817459]
[1771861057427,1.44329123,1908.4,1907.3,1.21817459]
[1771861058627,1.17451376,1908.0,1907.1,1.21817459]
[1771861059228,0.26212,1907.9,1907.1,1.21817459]
[1771861059532,1.17451376,1907.8,1906.6,1.21817459]
[1771861061330,1.17451376,1907.8,1906.8,1.21817459]
[1771861062234,1.17451376,1908.2,1906.8,1.21817459]
[1771861062432,1.17451376,1908.2,1906.6,41.06229]
[1771861062433,1.17451376,1908.2,1907.0,1.21817459]
[1771861062935,1.17451376,1908.2,1907.2,1.21817459]
[1771861063735,1.17451376,1908.0,1907.2,1.21817459]
[1771861064733,1.17451376,1907.8,1907.2,1.21817459]
[1771861065536,0.26212,1907.9,1907.2,1.21817459]
[1771861065737,1.43663376,1907.9,1907.2,1.21817459]
[1771861066728,0.26212,1907.9,1907.2,1.21817459]
[1771861067034,1.43663376,1907.9,1907.2,1.21817459]
[1771861070831,1.07998219,1908.1,1907.2,1.21817459]
[1771861071037,0.00671747,1908.4,1907.4,1.11289623]
[1771861071238,0.00671747,1908.4,1907.6,1.11289623]
[1771861071535,0.00671747,1908.4,1907.6,1.11794078]
[1771861072434,1.08669966,1908.4,1907.6,1.11794078]
[1771861072829,1.08669966,1908.4,1907.6,0.00504455]
[1771861073338,1.07998219,1908.2,1907.4,1.11289623]
[1771861074038,1.07998219,1908.0,1907.4,1.11289623]
[1771861074534,1.07998219,1908.0,1907.4,1.11814076]
[1771861074737,0.00671747,1908.4,1907.4,1.11814076]
[1771861074738,1.07998219,1908.2,1907.4,1.11814076]
[1771861074937,1.08669966,1908.4,1907.4,1.11814076]
[1771861076337,1.07998219,1908.2,1907.4,1.11814076]
[1771861076537,0.26206,1908.3,1907.4,1.11814076]
[1771861076728,1.34204219,1908.3,1907.4,1.11814076]
[1771861077243,0.00671747,1908.4,1907.4,1.11814076]
[1771861077552,1.08669966,1908.4,1907.4,1.11814076]
[1771861078345,1.34875966,1908.4,1907.4,1.11814076]
[1771861080246,1.07998219,1908.0,1907.4,0.00524453]
[1771861081342,1.07998219,1908.3,1907.4,1.11814076]
[1771861081646,1.07998219,1908.1,1907.4,1.11814076]
[1771861081847,1.07998219,1907.9,1907.4,0.00524453]
[1771861082146,1.07998219,1908.1,1907.4,1.11814076]
[1771861083041,5.68071255,1908.4,1907.4,1.11814076]
[1771861083242,1.34874966,1908.4,1907.4,1.11814076]
[1771861084248,0.00671747,1908.4,1907.4,1.11814076]
[1771861085543,4.33196289,1909.0,1907.8,1.11289623]
[1771861085845,1.07998219,1909.1,1908.0,1.11289623]
[1771861086048,1.07998219,1908.9,1908.0,1.11289623]
[1771861086543,1.08563671,1908.9,1908.0,1.11289623]
[1771861087246,0.00565452,1908.9,1908.0,1.11289623]
[1771861087448,1.08563671,1908.9,1908.0,1.11289623]
[1771861088046,0.00565452,1908.9,1908.0,1.11289623]
[1771861088443,0.00565452,1908.9,1908.2,1.11289623]
[1771861088644,1.34189219,1909.5,1908.2,1.11289623]
[1771861089053,1.07998219,1909.5,1908.4,1.11289623]
[1771861089651,1.08423401,1909.5,1908.4,1.11289623]
[1771861090451,1.34613401,1909.5,1908.4,1.11289623]
[1771861094554,1.34613401,1909.5,1908.0,1.11289623]
[1771861094752,1.04641597,1909.0,1908.0,1.11289623]